bitfinex/quotes_BTCUSD_20241201
["timestamp","ask_amount","ask_price","bid_price","bid_amount"]
[1733054957966,2.65680332,97274.0,97273.0,5.50573439]
[1733054958186,2.65680332,97274.0,97273.0,5.44405139]
[1733054958434,2.65680332,97274.0,97273.0,5.42349039]
[1733054958730,2.65680332,97274.0,97273.0,5.36180739]
[1733054958948,2.65680332,97274.0,97273.0,5.34124639]
[1733054962044,2.65680332,97274.0,97273.0,5.30012439]
[1733054963511,2.65680332,97274.0,97273.0,5.25900239]
[1733054964153,2.65680332,97274.0,97273.0,5.21788039]
[1733054964363,2.65680332,97274.0,97273.0,5.19731939]
[1733054965145,2.65680332,97274.0,97273.0,5.15619739]
[1733054966779,2.65680332,97274.0,97273.0,5.13563639]
[1733054967212,2.65680332,97274.0,97273.0,5.07395339]
[1733054967458,2.65680332,97274.0,97273.0,5.03283139]
[1733054967459,0.48349332,97274.0,97273.0,5.03283139]
[1733054967914,3.79452194,97274.0,97273.0,4.97114839]
[1733054968144,3.79971745,97274.0,97273.0,4.93002639]
[1733054972728,3.791934,97274.0,97273.0,4.93002639]
[1733054976223,3.791934,97274.0,97273.0,4.88890439]
[1733054979849,0.475708,97274.0,97273.0,4.88890439]
[1733054980057,0.55584662,97274.0,97273.0,4.86834339]
[1733054980263,0.55065111,97274.0,97273.0,4.86834339]
[1733054980475,2.99840001,97274.0,97273.0,4.86834339]
[1733054980674,2.92340101,97274.0,97273.0,4.86834339]
[1733054981021,2.78252401,97274.0,97273.0,4.86834339]
[1733054981453,2.78252401,97274.0,97273.0,4.86734339]
[1733054981681,2.78352401,97274.0,97273.0,4.84778239]
[1733054982455,3.10715547,97274.0,97273.0,4.74497739]
[1733054982673,3.10595599,97274.0,97273.0,4.72441639]
[1733054982871,3.01012453,97274.0,97273.0,4.70485539]
[1733054985687,3.54872453,97274.0,97273.0,4.70485539]
[1733054986294,3.55872453,97274.0,97273.0,4.70485539]
[1733054986494,3.46122453,97274.0,97273.0,4.70485539]
[1733054986912,3.48422453,97274.0,97273.0,4.70485539]
[1733054988425,3.47422453,97274.0,97273.0,4.70485539]
[1733054988672,3.48422453,97274.0,97273.0,4.70485539]
[1733054988904,3.48767222,97274.0,97273.0,4.70485539]
[1733054989129,3.44047222,97274.0,97273.0,4.70485539]
[1733054990616,3.36437222,97274.0,97273.0,4.70485539]
[1733054991594,3.46187222,97274.0,97273.0,4.70485539]
[1733054991797,3.46187222,97274.0,97273.0,4.6775263]
[1733054993422,3.45674779,97274.0,97273.0,4.6775263]
[1733054996819,3.55957925,97274.0,97273.0,4.6775263]
[1733054998813,3.45674779,97274.0,97273.0,4.6775263]
[1733055000336,3.45674779,97274.0,97273.0,4.6749263]
[1733055001669,3.45574779,97274.0,97273.0,4.6739263]
[1733055001884,3.46274779,97274.0,97273.0,4.6749263]
[1733055002519,3.44874779,97274.0,97273.0,4.6729263]
[1733055003007,3.46374779,97274.0,97273.0,4.6749263]
[1733055003225,3.45674779,97274.0,97273.0,4.6739263]
[1733055003449,3.44874779,97274.0,97273.0,4.6729263]
[1733055003661,3.56057925,97274.0,97273.0,4.6739263]
[1733055003879,3.56757925,97274.0,97273.0,4.6739263]
[1733055005045,4.48529625,97274.0,97273.0,4.6729263]
[1733055005466,4.47829625,97274.0,97273.0,4.6729263]
[1733055005961,4.49529625,97274.0,97273.0,4.6743753]
[1733055006639,4.39246479,97274.0,97273.0,4.6743753]
[1733055010452,4.39176479,97274.0,97273.0,4.6743753]
[1733055010742,4.48926479,97274.0,97273.0,4.6743753]
[1733055011404,4.48926479,97274.0,97273.0,4.6538143]
[1733055012916,4.48926479,97274.0,97273.0,4.6126923]
[1733055013393,4.48926479,97274.0,97273.0,4.5921313]
[1733055013604,4.48926479,97274.0,97273.0,4.5715703]
[1733055014487,4.59209625,97274.0,97273.0,4.5715703]
[1733055016254,1.17303879,97274.0,97273.0,4.5715703]
[1733055016682,4.48926479,97274.0,97273.0,4.5510093]
[1733055016915,1.17303879,97274.0,97273.0,4.5098873]
[1733055017143,4.48926479,97274.0,97273.0,4.4687653]
[1733055017889,4.39176479,97274.0,97273.0,4.4687653]
[1733055019061,4.39176479,97274.0,97273.0,4.4070823]
[1733055019275,4.49459625,97274.0,97273.0,4.3865213]
[1733055020301,4.49459625,97274.0,97273.0,4.3859123]
[1733055020873,4.39176479,97274.0,97273.0,4.3859123]
[1733055021698,4.39176479,97274.0,97273.0,4.3447903]
[1733055023107,4.48926479,97274.0,97273.0,4.3447903]
[1733055023318,4.48926479,97274.0,97273.0,4.3242293]
[1733055024012,4.48926479,97274.0,97273.0,4.2831073]
[1733055024686,4.39176479,97274.0,97273.0,4.2214243]
[1733055025922,4.39176479,97274.0,97273.0,4.1803023]
[1733055026484,4.49459625,97274.0,97273.0,4.1597413]
[1733055026683,4.39176479,97274.0,97273.0,4.1186193]
[1733055027841,4.39176479,97274.0,97273.0,4.0774973]
[1733055030298,4.48926479,97274.0,97273.0,4.0774973]
[1733055030494,4.48926479,97274.0,97273.0,4.0363753]
[1733055031068,4.57106479,97274.0,97273.0,3.81217211]
[1733055031272,3.90955925,97274.0,97273.0,3.81217211]
[1733055031451,4.00705925,97274.0,97273.0,3.81217211]
[1733055031661,3.8175848,97274.0,97273.0,3.72992811]
[1733055031866,3.7120848,97274.0,97273.0,3.70836711]
[1733055032069,3.60925334,97274.0,97273.0,3.70836711]
[1733055032295,3.61825334,97274.0,97273.0,3.70936711]
[1733055032839,3.89897949,97274.0,97273.0,3.00777885]
[1733055033001,3.523689,97274.0,97273.0,2.96832333]
[1733055033219,3.88198648,97274.0,97273.0,2.93165324]
[1733055033444,3.98481794,97274.0,97273.0,2.93165324]
[1733055033669,3.95971602,97274.0,97273.0,2.91109224]
[1733055033896,3.96871602,97274.0,97273.0,2.89053124]
[1733055034121,3.96871602,97274.0,97273.0,2.86997024]
[1733055034347,3.95971602,97274.0,97273.0,2.82884824]
[1733055034565,3.96871602,97274.0,97273.0,2.80828724]
[1733055034787,3.95971602,97274.0,97273.0,2.74660424]
[1733055034996,3.95071602,97274.0,97273.0,2.72504324]
[1733055035480,3.95971602,97274.0,97273.0,2.72504324]
[1733055035701,3.970468,97274.0,97273.0,2.64279924]
[1733055035915,3.61217052,97274.0,97273.0,2.61026067]
[1733055036142,3.61217052,97274.0,97273.0,2.59229432]
[1733055036362,1.15740152,97274.0,97273.0,2.59229432]
[1733055036569,1.15740152,97274.0,97273.0,2.57173332]
[1733055036819,4.47362752,97274.0,97273.0,2.48948932]
[1733055037305,4.46462752,97274.0,97273.0,2.48948932]
[1733055037520,4.47362752,97274.0,97273.0,2.48948932]
[1733055037728,4.46462752,97274.0,97273.0,2.46892832]
[1733055037939,4.46462752,97274.0,97273.0,2.44836732]
[1733055038145,4.47362752,97274.0,97273.0,2.40724532]
[1733055038385,4.47362752,97274.0,97273.0,2.38668432]
[1733055038586,4.47362752,97274.0,97273.0,2.36612332]
[1733055038794,4.47362752,97274.0,97273.0,2.28387932]
[1733055039392,4.75072739,97274.0,97273.0,2.28387932]
[1733055039648,4.74172739,97274.0,97273.0,2.26331832]
[1733055039791,4.07812752,97274.0,97273.0,1.81513532]
[1733055039994,4.08712752,97274.0,97273.0,1.79457432]
[1733055040510,3.86308652,97274.0,97273.0,1.79457432]
[1733055040702,3.57841352,97274.0,97273.0,1.75345232]
[1733055040931,3.57841352,97274.0,97273.0,1.73289132]
[1733055041142,4.69953533,97274.0,97273.0,1.69176932]
[1733055041362,4.51088833,97274.0,97273.0,1.69176932]
[1733055041597,3.47558806,97274.0,97273.0,1.69176932]
[1733055041846,3.07158806,97274.0,97273.0,1.63008632]
[1733055042078,3.07158806,97274.0,97273.0,1.58896432]
[1733055042270,3.08058806,97274.0,97273.0,1.58896432]
[1733055042732,3.18341952,97274.0,97273.0,1.56840332]
[1733055043172,3.18341952,97274.0,97273.0,1.52728132]
[1733055043829,3.19952678,97274.0,97273.0,1.42447632]
[1733055044285,3.19952678,97274.0,97273.0,1.39891532]
[1733055044471,3.19952678,97274.0,97273.0,1.37835432]
[1733055044926,3.19952678,97274.0,97273.0,1.29611032]
[1733055045488,3.19952678,97274.0,97273.0,1.27554932]
[1733055045709,3.19952678,97274.0,97273.0,1.25498832]
[1733055046206,3.19952678,97274.0,97273.0,1.17274432]
[1733055046845,4.23884859,97274.0,97273.0,1.09050032]
[1733055047049,3.00489532,97274.0,97273.0,1.06993932]
[1733055047299,2.99189532,97274.0,97273.0,1.06993932]
[1733055047523,2.66598166,97274.0,97273.0,1.19873932]
[1733055047752,3.01527914,97274.0,97273.0,1.19873932]
[1733055048489,0.95313914,97274.0,97273.0,1.19873932]
[1733055048712,4.42836514,97274.0,97273.0,1.19873932]
[1733055048930,4.45136514,97274.0,97273.0,1.19873932]
[1733055049367,4.44136514,97274.0,97273.0,1.19873932]
[1733055049778,4.44836514,97274.0,97273.0,1.19873932]
[1733055050123,4.37261014,97274.0,97273.0,1.19873932]
[1733055050337,4.35203114,97274.0,97273.0,1.19873932]
[1733055050764,4.36203114,97274.0,97273.0,1.19873932]
[1733055050968,4.35203114,97274.0,97273.0,1.19873932]
[1733055051200,4.36203114,97274.0,97273.0,1.19873932]
[1733055051402,4.35203114,97274.0,97273.0,1.19873932]
[1733055051927,3.93284114,97274.0,97273.0,1.19873932]
[1733055052170,3.35205514,97274.0,97273.0,1.19873932]
[1733055053116,3.34205514,97274.0,97273.0,1.19873932]
[1733055053341,3.35205514,97274.0,97273.0,1.19873932]
[1733055056575,2.99275766,97274.0,97273.0,1.19873932]
[1733055057687,3.00802045,97274.0,97273.0,1.19873932]
[1733055059916,2.99275766,97274.0,97273.0,1.19873932]
[1733055064362,2.4270894,97274.0,97273.0,1.19873932]
[1733055064607,0.7219254,97274.0,97273.0,1.19873932]
[1733055064823,0.13395483,97274.0,97273.0,1.19873932]
[1733055065258,0.14395483,97274.0,97273.0,1.19873932]
[1733055066187,0.13695483,97274.0,97273.0,1.19873932]
[1733055066415,0.26795483,97274.0,97273.0,1.19873932]
[1733055066636,0.27795483,97274.0,97273.0,1.19873932]
[1733055066862,0.15,97278.0,97273.0,1.19873932]
[1733055067086,0.31114433,97277.0,97274.0,0.1215]
[1733055067313,0.15,97278.0,97273.0,1.07053457]
[1733055067543,0.15,97278.0,97277.0,0.1215]
[1733055068443,0.05522828,97280.0,97279.0,0.124]
[1733055068672,0.36366649,97280.0,97279.0,0.124]
[1733055069092,0.5164678,97280.0,97279.0,0.124]
[1733055069766,0.7220608,97280.0,97279.0,0.124]
[1733055070444,0.5164678,97280.0,97279.0,0.124]
[1733055070877,0.5184678,97280.0,97279.0,0.124]
[1733055077433,0.5084678,97280.0,97279.0,0.124]
[1733055092953,1.0318098,97280.0,97279.0,0.124]
[1733055094542,0.5084678,97280.0,97279.0,0.124]
[1733055094760,2.3723168,97280.0,97279.0,0.124]
[1733055096298,2.37421161,97280.0,97279.0,0.124]
[1733055097676,2.34325061,97280.0,97279.0,0.124]
[1733055103611,0.033,97278.0,97277.0,0.0017276]
[1733055103824,3.59434575,97278.0,97277.0,0.0017276]
[1733055104051,3.59299757,97278.0,97277.0,0.0017276]
[1733055105165,0.28477157,97278.0,97277.0,0.0027276]
[1733055105351,3.60099757,97278.0,97277.0,0.0027276]
[1733055105481,3.59299757,97278.0,97277.0,0.0017276]
[1733055105690,3.60099757,97278.0,97277.0,0.0027276]
[1733055106115,3.60499757,97278.0,97277.0,0.0027276]
[1733055106575,3.60099757,97278.0,97277.0,0.0027276]
[1733055106995,3.59699757,97278.0,97277.0,0.0017276]
[1733055107407,3.59999757,97278.0,97277.0,0.0017276]
[1733055107613,3.59299757,97278.0,97277.0,0.0017276]
[1733055108053,3.59999757,97278.0,97277.0,0.0017276]
[1733055109162,2.79248557,97278.0,97277.0,0.0017276]
[1733055109400,1.89464457,97278.0,97277.0,0.0017276]
[1733055109908,1.82176157,97278.0,97277.0,0.0017276]
[1733055110176,1.80434757,97278.0,97277.0,0.0017276]
[1733055110838,1.48698357,97278.0,97277.0,0.0017276]
[1733055111039,1.44912257,97278.0,97277.0,0.0017276]
[1733055111267,1.44212257,97278.0,97277.0,0.0017276]
[1733055111701,1.44812257,97278.0,97277.0,0.0017276]
[1733055112113,1.40084957,97278.0,97277.0,0.0017276]
[1733055112384,1.17019257,97278.0,97277.0,0.0017276]
[1733055113033,0.561196,97277.0,97273.0,1.05815644]
[1733055113258,0.15,97274.0,97273.0,1.05815644]
[1733055113475,0.90503215,97274.0,97273.0,1.05815644]
[1733055114171,0.39097615,97274.0,97273.0,1.18235644]
[1733055114372,0.39087615,97274.0,97273.0,1.18235644]
[1733055115257,0.39487615,97274.0,97273.0,1.18235644]
[1733055116555,0.39687615,97274.0,97273.0,1.18235644]
[1733055116972,0.28643815,97274.0,97273.0,1.18235644]
[1733055117182,1.88407315,97274.0,97273.0,1.18235644]
[1733055120754,1.86107315,97274.0,97273.0,1.18235644]
[1733055127820,1.86193695,97274.0,97273.0,1.18235644]
[1733055130369,1.86193695,97274.0,97273.0,1.10735644]
[1733055132539,2.21233695,97274.0,97273.0,1.05805544]
[1733055132966,2.21233695,97274.0,97273.0,0.99637244]
[1733055133809,2.21033695,97274.0,97273.0,0.99637244]
[1733055134042,2.21533695,97274.0,97273.0,0.99637244]
[1733055134676,2.21033695,97274.0,97273.0,0.99637244]
[1733055134908,2.20633695,97274.0,97273.0,0.99637244]
[1733055135123,2.21533695,97274.0,97273.0,0.99637244]
[1733055135569,2.20633695,97274.0,97273.0,0.99637244]
[1733055136188,2.20633695,97274.0,97273.0,0.97581144]
[1733055136393,2.21533695,97274.0,97273.0,0.93468944]
[1733055136833,2.22033695,97274.0,97273.0,0.93468944]
[1733055138562,2.22033695,97274.0,97273.0,0.93104244]
[1733055139621,2.22033695,97274.0,97273.0,0.88992044]
[1733055140722,2.22033695,97274.0,97273.0,0.70487144]
[1733055141079,2.32316841,97274.0,97273.0,0.70487144]
[1733055141516,2.31416841,97274.0,97273.0,0.70487144]
[1733055141707,2.30916841,97274.0,97273.0,0.60206644]
[1733055141919,2.31816841,97274.0,97273.0,0.60206644]
[1733055142181,2.36366841,97274.0,97273.0,0.60206644]
[1733055142593,2.37166841,97274.0,97273.0,0.58150544]
[1733055142830,2.25983695,97274.0,97273.0,0.51982244]
[1733055143039,2.26883695,97274.0,97273.0,0.49926144]
[1733055143664,2.26883695,97274.0,97273.0,0.47870044]
[1733055144069,2.26083695,97274.0,97273.0,0.45813944]
[1733055144262,2.26083695,97274.0,97273.0,0.43757844]
[1733055144496,2.26083695,97274.0,97273.0,0.39645644]
[1733055144701,2.26083695,97274.0,97273.0,0.37589544]
[1733055144906,2.26983695,97274.0,97273.0,0.35533444]
[1733055145117,2.26083695,97274.0,97273.0,0.31421244]
[1733055145328,2.25983695,97274.0,97273.0,0.29365144]
[1733055145545,2.26883695,97274.0,97273.0,0.29365144]
[1733055145743,2.26883695,97274.0,97273.0,0.21140744]
[1733055145974,2.26883695,97274.0,97273.0,0.19084644]
[1733055146879,2.26883695,97274.0,97273.0,0.14972444]
[1733055147130,2.26883695,97274.0,97273.0,0.12916344]
[1733055147304,2.26883695,97274.0,97273.0,0.08804144]
[1733055147536,2.26083695,97274.0,97273.0,0.08804144]
[1733055147670,2.25183695,97274.0,97273.0,0.04691944]
[1733055147909,2.25983695,97274.0,97272.0,6.4e-07]
[1733055148095,2.25983695,97274.0,97272.0,0.00017951]
[1733055148096,3.79995226,97273.0,97272.0,0.00017951]
[1733055148291,3.80283922,97273.0,97272.0,0.00017951]
[1733055148503,3.89298898,97273.0,97272.0,0.00017951]
[1733055148722,3.89298898,97273.0,97272.0,5.1e-07]
[1733055148936,0.57676298,97273.0,97272.0,5.1e-07]
[1733055149161,0.48661322,97273.0,97272.0,5.1e-07]
[1733055149587,0.4973652,97273.0,97272.0,5.1e-07]
[1733055151029,0.5143652,97273.0,97272.0,5.1e-07]
[1733055151428,0.5143652,97273.0,97266.0,7.1e-07]
[1733055151429,0.378619,97267.0,97266.0,7.1e-07]
[1733055151637,0.48146421,97267.0,97266.0,2.1e-07]
[1733055151845,0.48661602,97267.0,97266.0,2.1e-07]
[1733055152046,0.58944748,97267.0,97266.0,2.1e-07]
[1733055152229,0.71774748,97267.0,97266.0,2.1e-07]
[1733055152640,0.72674748,97267.0,97266.0,2.1e-07]
[1733055154533,0.71774748,97267.0,97266.0,2.1e-07]
[1733055154765,0.72674748,97267.0,97266.0,2.1e-07]
[1733055154965,0.73574748,97267.0,97266.0,2.1e-07]
[1733055155163,0.72674748,97267.0,97266.0,2.1e-07]
[1733055155380,0.73574748,97267.0,97266.0,2.1e-07]
[1733055155583,0.72674748,97267.0,97266.0,2.1e-07]
[1733055155810,0.73574748,97267.0,97266.0,2.1e-07]
[1733055156246,0.74574748,97267.0,97266.0,2.1e-07]
[1733055156860,0.74986748,97267.0,97266.0,2.1e-07]
[1733055158808,0.25,97248.0,97247.0,0.00158642]
[1733055159024,4.04773021,97248.0,97247.0,0.00176589]
[1733055159235,4.05282128,97248.0,97247.0,0.00176589]
[1733055161204,4.05982128,97248.0,97247.0,0.00176589]
[1733055161836,4.06382128,97248.0,97247.0,0.00176589]
[1733055162962,3.92195128,97248.0,97247.0,0.00176589]
[1733055163163,2.83564228,97248.0,97247.0,0.00176589]
[1733055163571,0.74759528,97248.0,97247.0,0.00176589]
[1733055163832,3.26533728,97248.0,97247.0,0.00176589]
[1733055164035,0.74759528,97248.0,97247.0,0.00176589]
[1733055164241,0.74759528,97248.0,97247.0,0.12826589]
[1733055164850,3.78792028,97248.0,97247.0,0.12826589]
[1733055165063,0.73659528,97248.0,97247.0,0.12826589]
[1733055165274,3.74092028,97248.0,97247.0,0.12826589]
[1733055165496,3.75592028,97248.0,97247.0,0.12826589]
[1733055165710,3.74692028,97248.0,97247.0,0.12826589]
[1733055166147,3.74092028,97248.0,97247.0,0.12826589]
[1733055166353,3.74492028,97248.0,97247.0,0.12826589]
[1733055166566,3.72671928,97248.0,97247.0,0.12826589]
[1733055167412,3.72671928,97248.0,97247.0,0.12326589]
[1733055167630,3.51492028,97248.0,97247.0,0.12326589]
[1733055167844,3.49404928,97248.0,97247.0,0.12326589]
[1733055168261,3.48604928,97248.0,97247.0,0.12326589]
[1733055168487,3.49004928,97248.0,97247.0,0.12326589]
[1733055169152,3.49404928,97248.0,97247.0,0.12326589]
[1733055169853,3.18944528,97248.0,97247.0,0.12326589]
[1733055170635,2.69092028,97248.0,97247.0,0.12326589]
[1733055170985,2.53295728,97248.0,97247.0,0.12326589]
[1733055171411,2.52495728,97248.0,97247.0,0.12326589]
[1733055171537,2.52095728,97248.0,97247.0,0.12326589]
[1733055171743,2.53195728,97248.0,97247.0,0.12326589]
[1733055171960,2.35286628,97248.0,97247.0,0.12326589]
[1733055173497,2.35286628,97248.0,97247.0,0.10644103]
[1733055174452,3.02494328,97248.0,97247.0,0.10644103]
[1733055174850,3.00435128,97248.0,97247.0,0.10816883]
[1733055176074,3.00435128,97248.0,97247.0,0.10316883]
[1733055176276,2.97242628,97248.0,97247.0,0.10316883]
[1733055178968,2.95798728,97248.0,97247.0,0.10316883]
[1733055179623,2.92709128,97248.0,97247.0,0.10316883]
[1733055180162,2.90409128,97248.0,97247.0,0.10316883]
[1733055180400,1.85401728,97248.0,97247.0,0.10316883]
[1733055180592,1.83101728,97248.0,97247.0,0.10316883]
[1733055180809,1.19309328,97248.0,97247.0,0.10316883]
[1733055186711,1.19395738,97248.0,97247.0,0.10316883]
[1733055192545,1.19395738,97248.0,97247.0,0.0017278]
[1733055193621,0.72545938,97248.0,97247.0,0.0017278]
[1733055194238,3.40870738,97248.0,97247.0,0.0017278]
[1733055194437,3.41570738,97248.0,97247.0,0.0017278]
[1733055194940,3.43870738,97248.0,97247.0,0.0017278]
[1733055195214,3.28425738,97248.0,97247.0,0.0017278]
[1733055195600,3.28425738,97248.0,97247.0,0.0481278]
[1733055195601,2.27436538,97248.0,97247.0,0.0481278]
[1733055195747,2.18973138,97248.0,97247.0,0.0481278]
[1733055200649,2.18973138,97248.0,97247.0,0.0017278]
[1733055203606,2.18787429,97248.0,97247.0,0.0017278]
[1733055206208,0.74660229,97248.0,97247.0,0.0017278]
[1733055207483,3.39322329,97248.0,97247.0,0.0017278]
[1733055207758,3.37285729,97248.0,97247.0,0.0017278]
[1733055209123,0.35568,97238.0,97237.0,0.01703068]
[1733055209346,0.35568,97238.0,97237.0,0.01721009]
[1733055209533,0.35966504,97238.0,97237.0,0.01721009]
[1733055210735,0.36166504,97238.0,97237.0,0.01721009]
[1733055211612,0.36266504,97238.0,97237.0,0.01721009]
[1733055212654,0.36166504,97238.0,97237.0,0.01721009]
[1733055212851,0.35966504,97238.0,97237.0,0.01721009]
[1733055213070,0.36066504,97238.0,97237.0,0.01721009]
[1733055213270,0.36366504,97238.0,97237.0,0.01721009]
[1733055214148,0.36066504,97238.0,97237.0,0.01721009]
[1733055214553,0.36166504,97238.0,97237.0,0.01721009]
[1733055215190,0.36266504,97238.0,97237.0,0.01721009]
[1733055217289,0.36266504,97238.0,97237.0,0.10031009]
[1733055222962,0.36266504,97238.0,97237.0,0.10203789]
[1733055223402,0.36352894,97238.0,97237.0,0.10203789]
[1733055234992,0.36152894,97238.0,97237.0,0.10203789]
[1733055235426,0.36052894,97238.0,97237.0,0.10203789]
[1733055245373,0.15484894,97238.0,97237.0,0.10203789]
[1733055245752,0.00484894,97238.0,97237.0,0.10203789]
[1733055247289,0.00722247,97238.0,97237.0,0.10203789]
[1733055247469,0.0008639,97238.0,97237.0,0.10203789]
[1733055247985,0.00722623,97238.0,97237.0,0.10203789]
[1733055248188,0.0008639,97238.0,97237.0,0.10203789]
[1733055248441,0.00722623,97238.0,97237.0,0.10203789]
[1733055248612,0.0008639,97238.0,97237.0,0.10203789]
[1733055248822,0.00722623,97238.0,97237.0,0.10203789]
[1733055248992,0.0008639,97238.0,97237.0,0.10203789]
[1733055252359,0.00722462,97238.0,97237.0,0.10203789]
[1733055252568,0.0008639,97238.0,97237.0,0.10203789]
[1733055252778,0.00722462,97238.0,97237.0,0.10203789]
[1733055252986,0.0008639,97238.0,97237.0,0.10203789]
[1733055253434,0.00722462,97238.0,97237.0,0.10203789]
[1733055255192,0.21290462,97238.0,97237.0,0.10203789]
[1733055255400,0.00722462,97238.0,97237.0,0.10203789]
[1733055259339,0.21290462,97238.0,97237.0,0.10203789]
[1733055260467,0.21290462,97238.0,97237.0,0.10150032]
[1733055261208,0.21290462,97238.0,97237.0,0.08500721]
[1733055265513,0.21290462,97238.0,97237.0,0.00190721]
[1733055287433,0.20293085,97238.0,97237.0,0.00190721]
[1733055287680,0.20840768,97238.0,97237.0,0.00190721]
[1733055293127,0.20927158,97238.0,97237.0,0.00190721]
[1733055295132,0.20864463,97238.0,97237.0,0.00190721]
[1733055302577,0.00634073,97238.0,97237.0,0.00190721]
[1733055302782,0.00634073,97238.0,97237.0,0.01190721]
[1733055302986,0.0008639,97238.0,97237.0,0.13740721]
[1733055310619,0.0008639,97238.0,97237.0,0.08750721]
[1733055310828,0.00637073,97238.0,97237.0,0.08750721]
[1733055311031,0.0008639,97238.0,97237.0,0.08750721]
[1733055311249,0.00637073,97238.0,97237.0,0.08750721]
[1733055311509,0.0008639,97238.0,97237.0,0.08750721]
[1733055311727,0.00637073,97238.0,97237.0,0.08750721]
[1733055311956,0.0008639,97238.0,97237.0,0.08750721]
[1733055312447,0.00637073,97238.0,97237.0,0.08750721]
[1733055312632,0.0008639,97238.0,97237.0,0.01190721]
[1733055312892,0.00637073,97238.0,97237.0,0.01190721]
[1733055313115,0.0008639,97238.0,97237.0,0.01190721]
[1733055316498,0.00637205,97238.0,97237.0,0.01190721]
[1733055316705,0.0008639,97238.0,97237.0,0.01190721]
[1733055316913,0.00637204,97238.0,97237.0,0.01190721]
[1733055325335,0.0008639,97238.0,97237.0,0.01190721]
[1733055333545,0.15,97244.0,97237.0,0.01190721]
[1733055333783,0.00559144,97238.0,97237.0,0.01190721]
[1733055334080,0.15,97244.0,97237.0,0.01190721]
[1733055334336,0.00559144,97238.0,97237.0,0.01190721]
[1733055334543,0.15,97244.0,97237.0,0.01190721]
[1733055334761,0.00559144,97238.0,97237.0,0.01190721]
[1733055335013,0.205672,97243.0,97237.0,0.01190721]
[1733055335224,0.00559144,97238.0,97237.0,0.01190721]
[1733055335433,0.205672,97243.0,97237.0,0.01190721]
[1733055335650,0.00559144,97238.0,97237.0,0.01190721]
[1733055335861,0.205672,97243.0,97237.0,0.01190721]
[1733055336071,0.00559202,97238.0,97237.0,0.01190721]
[1733055336276,0.205672,97243.0,97237.0,0.01190721]
[1733055336487,0.00559208,97238.0,97237.0,0.01190721]
[1733055336707,0.205672,97243.0,97237.0,0.01190721]
[1733055336925,0.00559208,97238.0,97237.0,0.01190721]
[1733055337141,0.205672,97243.0,97237.0,0.01190721]
[1733055337382,0.15559132,97242.0,97237.0,0.01190721]
[1733055337627,0.15,97242.0,97237.0,0.01190721]
[1733055337823,0.00559872,97241.0,97237.0,0.01190721]
[1733055338797,0.001,97242.0,97237.0,0.01190721]
[1733055339007,0.00558613,97240.0,97237.0,0.01190721]
[1733055339206,0.15,97242.0,97237.0,0.01190721]
[1733055339439,0.00558613,97239.0,97237.0,0.01190721]
[1733055339633,0.0008639,97238.0,97237.0,0.01190721]
[1733055339808,0.00645003,97238.0,97237.0,0.01190721]
[1733055341665,0.00745003,97238.0,97237.0,0.01190721]
[1733055343063,0.00845003,97238.0,97237.0,0.01190721]
[1733055346960,0.0028639,97238.0,97237.0,0.01190721]
[1733055349934,0.00138861,97238.0,97237.0,0.01190721]
[1733055352063,0.00225241,97238.0,97237.0,0.01190721]
[1733055352438,0.15,97249.0,97237.0,0.01190721]
[1733055352633,0.205661,97247.0,97237.0,0.01190721]
[1733055352839,0.023,97246.0,97237.0,0.01190721]
[1733055353273,0.023,97244.0,97237.0,0.01190721]
[1733055353684,0.00558996,97243.0,97237.0,0.01190721]
[1733055356655,0.205666,97245.0,97237.0,0.01190721]
[1733055356857,0.00558996,97242.0,97237.0,0.01190721]
[1733055357079,0.15,97244.0,97237.0,0.01190721]
[1733055357295,0.00559298,97241.0,97237.0,0.01190721]
[1733055357458,0.20567,97243.0,97237.0,0.01190721]
[1733055357661,0.00559298,97240.0,97237.0,0.01190721]
[1733055357868,0.20567,97243.0,97237.0,0.01190721]
[1733055358077,0.00559298,97239.0,97237.0,0.01190721]
[1733055358454,0.00559298,97238.0,97237.0,0.01190721]
[1733055358878,0.001,97242.0,97237.0,0.01190721]
[1733055359121,0.00559374,97238.0,97237.0,0.01190721]
[1733055359345,0.20567,97243.0,97237.0,0.01190721]
[1733055359572,0.00559374,97238.0,97237.0,0.01190721]
[1733055360004,0.001,97239.0,97237.0,0.01190721]
[1733055360214,0.00559526,97238.0,97237.0,0.01190721]
[1733055360913,0.20567,97243.0,97237.0,0.01184214]
[1733055361132,0.00559526,97238.0,97237.0,0.01184214]
[1733055361338,0.20567,97243.0,97237.0,0.01184214]
[1733055361567,0.00559526,97238.0,97237.0,0.01184214]
[1733055361766,0.001,97239.0,97237.0,0.01184214]
[1733055361977,0.00559526,97238.0,97237.0,0.01184214]
[1733055363485,0.00659526,97238.0,97237.0,0.01184214]
[1733055363602,0.002,97238.0,97237.0,0.01184214]
[1733055363808,0.00759526,97238.0,97237.0,0.01184214]
[1733055370761,0.07559526,97238.0,97237.0,0.00184214]
[1733055370975,2.71641639,97238.0,97237.0,0.00184214]
[1733055371179,2.12661647,97238.0,97237.0,0.00184214]
[1733055371388,2.11463347,97238.0,97237.0,0.00184214]
[1733055371826,2.11463347,97238.0,97237.0,0.00177728]
[1733055372051,1.99226847,97238.0,97237.0,0.00177728]
[1733055372492,1.69165347,97238.0,97237.0,0.00177728]
[1733055372923,1.69065347,97238.0,97237.0,0.00177728]
[1733055373132,1.68965347,97238.0,97237.0,0.00177728]
[1733055374010,1.69165347,97238.0,97237.0,0.00177728]
[1733055374364,1.69265347,97238.0,97237.0,0.00177728]
[1733055375875,0.41044047,97238.0,97237.0,0.00177728]
[1733055376112,2.28168547,97238.0,97237.0,0.00177728]
[1733055376337,1.94451247,97238.0,97237.0,0.00177728]
[1733055376568,1.85136427,97238.0,97237.0,0.00177728]
[1733055377001,1.83592127,97238.0,97237.0,0.00177728]
[1733055377392,1.83402595,97238.0,97237.0,0.00177728]
[1733055379521,0.83409195,97238.0,97237.0,0.00177728]
[1733055379753,0.81349995,97238.0,97237.0,0.00177728]
[1733055380658,0.81049995,97238.0,97237.0,0.00177728]
[1733055382966,0.58185795,97238.0,97237.0,0.00177728]
[1733055385007,0.5835669,97238.0,97237.0,0.00177728]
[1733055386995,0.20127269,97238.0,97237.0,0.00177728]
[1733055387200,1.08369435,97238.0,97237.0,0.00177728]
[1733055387414,1.0814189,97238.0,97237.0,0.00177728]
[1733055388115,1.18425036,97238.0,97237.0,2.8e-07]
[1733055388305,0.4047179,97238.0,97237.0,2.8e-07]
[1733055388731,0.4147179,97238.0,97237.0,2.8e-07]
[1733055389151,0.4047179,97238.0,97237.0,2.8e-07]
[1733055389490,0.4157179,97238.0,97237.0,2.8e-07]
[1733055390693,0.48124314,97238.0,97237.0,2.8e-07]
[1733055391107,0.4137179,97238.0,97237.0,2.8e-07]
[1733055391567,0.4107179,97238.0,97237.0,2.8e-07]
[1733055391770,0.4197179,97238.0,97237.0,2.8e-07]
[1733055392192,0.4137179,97238.0,97237.0,2.8e-07]
[1733055392396,0.4197179,97238.0,97237.0,2.8e-07]
[1733055392963,0.4197179,97238.0,97225.0,0.0017268]
[1733055392964,0.455706,97226.0,97225.0,8e-08]
[1733055393179,0.85985121,97226.0,97225.0,4.9e-07]